{"text_format":"2","workbook":"xlsx","n_sheets":1,"sheets":["devis"],"not_rendered":{"charts":0,"images":0,"macros":0,"external_links":0,"defined_names":1,"comments":0,"pivot_tables":0},"unopened":[],"bounds":{"document_bytes":16777216,"sheet_cells":100000,"run_cost":"one","rows_first":2000,"rows_last":500,"rows_between":2000,"halvings":0,"cell_chars":16384,"cell_head_chars":4096},"cells_cut":0,"cells_raw":0,"read":"whole","date_system":"1900"}

{"sheet":"devis","index":0,"n_rows":41,"n_cols":6,"rows_kept":41,"cut":false,"hidden":false,"merged":[[1,0,1,5],[3,0,3,5],[40,0,47,5]]}
[]
["BORDERAU DE DETAILS DU DEVIS QUANTITATIF ET ESTIMATIF       LOT N°04: "]
[]
["  PLOMBERIE SANITAIRE/SURPRESSEUR/CLIMATISATION"]
[]
["Code","Désignation","U","Q","Déboursé","Total"]
[]
["4.1","Plomberie Sanitaire/Cuve à eau + surpresseur"]
["4.1.1","Fourniture et pose du réseau d'alimentation en tube RE et accessoires, robineterie, réseau d'évacuation EV/EU en PVC et accessoires yc toutes suggestion de mise en œuvre ","Ens",1,null,{"$f":"E9*D9","v":0}]
["4.1.2","Fourniture et pose goutières et réseau d'évacuation EP en PVC et accessoires et branchement inclus yc toutes suggestion de mise en œuvre","Ens",1,null,{"$f":"E10*D10","v":0}]
["4.1.3","Démolition partielle, travaux de ravallement des sanitaires dans les salles d'eau yc toutes suggestions de mise en œuvre localisation: SE 01-02","Ens",1,null,0]
["4.1.4","Fourniture et pose de WC à l'anglaise complet yc toutes suggestions de mise en œuvre localisation SDE-SE","u",4,null,0]
["4.1.5","Fourniture et pose d'un plan à un vasque avec meuble de rangement , mitigeur  yc toutes suggestions de mise en œuvre localisation: SDE 01","u",1,null,0]
["4.1.6","Fourniture et pose d'un plan  à 2 vasques avec meuble de rangement ,  mitigeur yc toutes suggestions de mise en œuvre localisation SDE: 02","u",1,null,0]
["4.1.7","Fourniture et pose de lave-main, avec mitigeur  yc toutes suggestions de mise en œuvre Localisation S.E 01-02","u",2,null,0]
["4.1.8","Fourniture et pose de mirroir de douche avec rangement et éclairage LED anti bleu combinée yc toutes suggestions de mise en œuvre localisation SDE 02","u",1,null,0]
["4.1.9","Fourniture et pose de mirroir de douche avec éclairage LED anti bleu combinée yc toutes suggestions de mise en œuvre localisation SDE 01","u",1,null,0]
["4.1.10","Fourniture et pose de porte serviette yc toutes suggestions de mise en œuvre localisation SDE-S.E","u",3,null,0]
["4.1.11","Fourniture et pose de porte papier hygiénique yc toutes suggestions de mise en œuvre localisation SDE-S.E","u",4,null,0]
["4.1.12","Fourniture et pose de mirroir de douche simple yc toutes suggestions de mise en œuvre localisation: S.E 01-02","u",2,null,0]
["4.1.13","Fourniture et pose de chauffe eau de 100l yc toutes suggestions de mise en œuvre","u",2,null,0]
["4.1.14","Fourniture et pose d'une cabine de douche ,ensemble robinetterie yc toutes suggestions de mise en œuvre localisation SDE 01- 02","u",2,null,0]
["4.1.15","Fourniture et pose d'un mitigeur evier de cuisine ,  yc toutes suggestions de mise en œuvre localisation : Cuisine","u",1,null,0]
["4.1.16","Fourniture et pose d'un surpresseur  complet avec ballon de100l et accesoires  yc toutes suggestions de mise en œuvre localisation :local tech surppresseur","Ens",1,null,0]
["4.1.17","Fourniture et pose d'une VMC  complet ,caisson complet de VMC, extrateur sanitaire  et accesoires  yc toutes suggestions de mise en œuvre localisation :SDE 01-SE 02","u",2,null,0]
[]
[null,"Sous total",null,null,null,{"$f":"SUM(F9:F26)","v":0}]
[]
["4.2","Climatisation par split système"]
["4.2.1","Séjour VIP,Public,Salle à manger , Bureau 02                                      SPLIT SYSTEM WESTPOINT OU EQUIVALENT MURAL WSZ 18 Puis frigorifique unitaire = 5200 W (Alimentation électrique mono+ T- 230 V - 50 Hz - puissance absorbée unit.: 2,6 kW)","u",4,null,{"$f":"E30*D30","v":0}]
["4.2.2","Chambres,Bureau01                                                                        SPLITS SYSTÈM WESTPOINT OU EQUIVALENT MURAL WSZ 12 Puis frigorifique unitaire = 3500 W (Alimentation électrique mono + T - 50Hz- puissance absorbée unit.:1,0 k","u",4,null,{"$f":"E31*D31","v":0}]
["4.2.3","CHASSIS SUPPORT - grand modèl","u",9,null,0]
["4.2.4","Liaison frigorifique et montages                                                                        LIAISON ENTRE UNITES EXTERIEURS ET UNITES INFERIEURES (TUBE CUIVRE ISOLE+CABLE ELECTRIQUE+FREON)                                                                              MISE EN PLACE DES SPLITS ET DES GROUPES EXTERIEURS                                                                                            MISE EN OEUVRE DE L'ENSEMBLE","Ens",1,null,0]
["4.2.5","EVACUATION DES CONDENSATS                                                         VIDANGE EN PVC BATIMENT NF\"POLY, QUALITE M1, SERIE EU A COLLER, EN ELEVATION.                                                               DIAM 26.0/32                                                                                                     AVEC ISOLATION ARMFLEX M1 EP 9mm                                           GOULOTTE BLANCHE POUR HABILLAGE EXTERIEUR CRISAL","Ens",1,null,{"$f":"E34*D34","v":0}]
[]
[null,"Sous total",null,null,null,{"$f":"SUM(F30:F34)","v":0}]
[]
[null,"TOTAL LOT 04",null,null,null,{"$f":"F27+F36","v":0}]
[]
[]
["NB : L'Entrepreneur exécutera, comme étant inclus dans son prix, tous travaux ressortissant de son lot et nécessaires au parfait achèvement des travaux. Il devra signaler clairement à part, dans la présentation de son offre, toutes les prestations des travaux qui ne figureraient pas dans le présent DQ.\nAussi le montant du présent LOT sera forfaitaire et non révisable après négociation."]